bitfinex/quotes_BTCUSD_20260311
["timestamp","ask_amount","ask_price","bid_price","bid_amount"]
[1773240708164,0.09537137,70811.0,70795.0,0.07062645]
[1773240708362,0.00141218,70812.0,70795.0,0.07062645]
[1773240708555,0.00141218,70812.0,70795.0,0.16083023]
[1773240709179,0.07202213,70812.0,70795.0,0.07062645]
[1773240709598,0.09537137,70811.0,70795.0,0.07062645]
[1773240710428,0.09128534,70809.0,70795.0,0.07062645]
[1773240711593,0.07202367,70812.0,70795.0,0.07062645]
[1773240711594,0.00141218,70812.0,70795.0,0.07062645]
[1773240711810,0.00141218,70812.0,70796.0,0.08825448]
[1773240711987,0.00141218,70812.0,70795.0,0.07062645]
[1773240712184,0.07202206,70812.0,70795.0,0.07062645]
[1773240712389,0.09128534,70811.0,70796.0,0.00148]
[1773240712813,0.09128534,70811.0,70797.0,0.00148]
[1773240713211,0.00141218,70812.0,70797.0,0.00148]
[1773240713619,0.07202214,70812.0,70797.0,0.00148]
[1773240713823,0.16189395,70813.0,70797.0,0.00148]
[1773240714261,0.07060892,70813.0,70797.0,0.00148]
[1773240714453,0.09128534,70812.0,70797.0,0.07210366]
[1773240714688,0.09128534,70812.0,70798.0,7.5e-05]
[1773240714888,7.5e-05,70807.0,70798.0,7.5e-05]
[1773240717975,0.09128534,70806.0,70798.0,7.5e-05]
[1773240718351,0.09128534,70806.0,70794.0,0.07062677]
[1773240718557,0.09128534,70806.0,70795.0,0.00148]
[1773240719034,0.09128534,70805.0,70784.0,0.07071243]
[1773240719228,0.09128534,70805.0,70791.0,0.00148]
[1773240719519,0.09276534,70805.0,70784.0,0.001555]
[1773240719903,0.00148,70805.0,70785.0,0.00148]
[1773240720108,0.09128534,70804.0,70785.0,0.00148]
[1773240720309,0.09128534,70804.0,70780.0,7.5e-05]
[1773240720633,0.07061847,70803.0,70781.0,0.00148]
[1773240720835,0.09128534,70802.0,70781.0,0.00148]
[1773240721198,0.09128534,70801.0,70781.0,0.00148]
[1773240721619,0.09128534,70801.0,70781.0,0.07212]
[1773240722749,0.14006405,70801.0,70782.0,0.08825448]
[1773240722947,0.001,70805.0,70782.0,0.08825448]
[1773240723299,0.21067988,70806.0,70782.0,0.08825448]
[1773240723657,0.14006405,70806.0,70782.0,0.08825448]
[1773240723852,7.5e-05,70807.0,70782.0,0.08825448]
[1773240724666,7.5e-05,70807.0,70784.0,0.08825448]
[1773240725434,0.09150535,70813.0,70784.0,0.08825448]
[1773240725435,0.14028406,70813.0,70784.0,0.08825448]
[1773240725648,0.00022001,70813.0,70790.0,0.08825448]
[1773240725880,0.00022001,70813.0,70792.0,0.08825448]
[1773240726080,0.07082853,70813.0,70792.0,0.08825448]
[1773240726627,0.07061049,70811.0,70793.0,0.07062845]
[1773240727449,0.07061049,70811.0,70793.0,0.15888293]
[1773240727711,0.00022001,70813.0,70794.0,0.08825448]
[1773240727926,0.07082866,70813.0,70794.0,0.08825448]
[1773240728127,0.162114,70813.0,70794.0,0.08825448]
[1773240728372,0.1371957,70812.0,70793.0,0.07062845]
[1773240728659,0.07061349,70808.0,70794.0,0.00148]
[1773240728895,0.00022001,70813.0,70795.0,0.08825448]
[1773240729318,0.09128534,70812.0,70794.0,0.07210714]
[1773240729476,0.09276534,70812.0,70792.0,0.07062754]
[1773240729838,0.09276534,70812.0,70795.0,0.00148]
[1773240730691,0.09276534,70812.0,70792.0,0.07062754]
[1773240730692,0.07061049,70811.0,70796.0,0.00148]
[1773240730896,0.09128534,70808.0,70776.0,7.5e-05]
[1773240731094,0.07061049,70811.0,70776.0,7.5e-05]
[1773240731095,0.09128534,70799.0,70776.0,7.5e-05]
[1773240731269,0.12574413,70800.0,70776.0,7.5e-05]
[1773240731270,0.09128534,70797.0,70776.0,7.5e-05]
[1773240731472,0.12574413,70790.0,70776.0,7.5e-05]
[1773240731677,0.09276534,70789.0,70776.0,7.5e-05]
[1773240731882,0.09128534,70788.0,70776.0,7.5e-05]
[1773240732132,0.00148,70789.0,70766.0,0.0002]
[1773240732133,0.09128534,70779.0,70766.0,0.0002]
[1773240732289,0.03551804,70792.0,70766.0,0.0002]
[1773240732290,0.09128534,70777.0,70766.0,1e-08]
[1773240732497,0.14030634,70787.0,70766.0,0.07065519]
[1773240732719,0.07062645,70795.0,70768.0,0.0706534]
[1773240732941,0.07062645,70795.0,70769.0,0.08825448]
[1773240733139,0.09128534,70794.0,70769.0,0.08825448]
[1773240733940,0.09128534,70806.0,70772.0,0.08825448]
[1773240734154,0.00148,70804.0,70798.0,7.5e-05]
[1773240734338,0.09128534,70803.0,70778.0,0.00148]
[1773240734541,0.09128534,70803.0,70771.0,0.41588916]
[1773240734742,0.09128534,70803.0,70772.0,0.00148]
[1773240734743,0.07062246,70799.0,70772.0,0.00148]
[1773240734918,0.09128534,70798.0,70773.0,0.00148]
[1773240735121,0.09128534,70796.0,70773.0,0.00148]
[1773240736333,0.09121034,70796.0,70773.0,0.00148]
[1773240736533,0.09121034,70796.0,70774.0,0.00148]
[1773240736736,0.07062645,70795.0,70775.0,0.07064641]
[1773240737152,0.16191179,70795.0,70775.0,0.07064641]
[1773240737453,0.00022001,70801.0,70775.0,0.07064641]
[1773240737454,0.001,70799.0,70775.0,0.07064641]
[1773240737653,0.0706241,70798.0,70776.0,0.08817948]
[1773240737830,0.0706241,70798.0,70776.0,0.08810448]
[1773240738235,7.5e-05,70784.0,70776.0,0.08810448]
[1773240738942,0.00022001,70801.0,70778.0,0.08825448]
[1773240739479,0.00022001,70809.0,70778.0,0.08825448]
[1773240739806,0.08602193,70808.0,70778.0,0.08825448]
[1773240739957,0.08602193,70808.0,70779.0,0.00148]
[1773240740160,0.08602193,70808.0,70780.0,0.07963694]
[1773240740730,0.0708325,70809.0,70780.0,0.07963694]
[1773240741097,0.07061349,70808.0,70782.0,0.07963694]
[1773240741239,0.00022001,70809.0,70782.0,0.07963694]
[1773240741866,0.07083276,70809.0,70782.0,0.07963694]
[1773240742238,0.08602193,70808.0,70769.0,0.0002]
[1773240742480,0.08602193,70799.0,70774.0,0.15176403]
[1773240742683,0.08602193,70799.0,70775.0,0.00148]
[1773240743264,0.07062346,70798.0,70776.0,0.00148]
[1773240743636,0.07062047,70801.0,70777.0,0.07963694]
[1773240745207,0.07062047,70801.0,70778.0,0.07064342]
[1773240746046,0.13864446,70802.0,70779.0,0.07963694]
[1773240746256,0.07061349,70808.0,70779.0,0.07963694]
[1773240746405,0.07061349,70808.0,70785.0,0.07963694]
[1773240746616,0.00022001,70801.0,70786.0,0.00148]
[1773240747222,0.00022001,70801.0,70787.0,0.07063443]
[1773240747843,0.00022001,70801.0,70787.0,0.15027137]
[1773240748213,0.00022001,70801.0,70787.0,0.07063443]
[1773240748450,0.00022001,70801.0,70787.0,0.15027137]
[1773240749281,0.08602193,70798.0,70766.0,1e-08]
[1773240749485,0.07062246,70799.0,70766.0,1e-08]
[1773240749486,0.12574413,70790.0,70766.0,1e-08]
[1773240749690,0.08750193,70789.0,70771.0,0.00148]
[1773240749890,0.08602193,70787.0,70771.0,0.001555]
[1773240750103,0.08750193,70787.0,70771.0,0.001555]
[1773240750512,0.08750193,70787.0,70771.0,0.00148]
[1773240750861,0.08750193,70787.0,70780.0,7.5e-05]
[1773240751066,0.08750193,70787.0,70771.0,0.00148]
[1773240751267,0.08750193,70787.0,70769.0,0.0002]
[1773240751268,0.08602193,70785.0,70769.0,0.00168]
[1773240751566,0.08602193,70784.0,70769.0,0.00168]
[1773240753338,0.15666036,70783.0,70771.0,7.5e-05]
[1773240753542,0.13864446,70782.0,70771.0,7.5e-05]
[1773240754166,0.15666036,70783.0,70771.0,7.5e-05]
[1773240754595,0.08602193,70782.0,70771.0,7.5e-05]
[1773240755515,0.07064042,70781.0,70771.0,7.5e-05]
[1773240756026,0.08602193,70780.0,70771.0,7.5e-05]
[1773240756610,0.14072308,70780.0,70763.0,0.00068]
[1773240756849,0.14072308,70780.0,70752.0,0.00148]
[1773240756850,0.08602193,70772.0,70752.0,0.00148]
[1773240757029,0.08602193,70770.0,70746.0,0.07067338]
[1773240757514,0.08602193,70770.0,70748.0,0.07067316]
[1773240757657,0.08602193,70768.0,70747.0,0.0706724]
[1773240757864,0.0706524,70769.0,70747.0,0.07067418]
[1773240758075,0.08602193,70768.0,70747.0,0.07067418]
[1773240758282,0.08602193,70768.0,70744.0,0.0003031]
[1773240758630,0.08602193,70759.0,70744.0,0.0003031]
[1773240758745,0.08750193,70758.0,70744.0,0.0003031]
[1773240759403,0.14075281,70768.0,70746.0,0.07963694]
[1773240759624,0.0706524,70769.0,70748.0,0.07963694]
[1773240759858,0.0706524,70769.0,70749.0,0.0014]
[1773240760167,0.21140521,70770.0,70750.0,0.0797053]
[1773240760168,0.14075281,70770.0,70750.0,0.0797053]
[1773240760375,0.35124678,70788.0,70750.0,0.0797053]
[1773240760376,0.14075281,70772.0,70750.0,0.0797053]
[1773240760572,0.14075281,70773.0,70750.0,0.0797053]
[1773240760769,0.001,70769.0,70750.0,0.0797053]
[1773240761146,0.07064546,70776.0,70750.0,0.0797053]
[1773240761530,0.07064546,70776.0,70751.0,0.07067037]
[1773240761754,0.07064546,70776.0,70752.0,0.0797053]
[1773240762157,0.07064541,70776.0,70752.0,0.0797053]
[1773240762538,0.07332543,70789.0,70752.0,0.0797053]
[1773240762876,0.07211843,70783.0,70752.0,0.0797053]
[1773240763056,0.07063843,70783.0,70752.0,0.0797053]
[1773240763273,0.21257255,70783.0,70752.0,0.0797053]
[1773240763475,0.14418387,70784.0,70752.0,0.0797053]
[1773240763476,0.00022001,70784.0,70752.0,0.0797053]
[1773240763679,0.00022001,70784.0,70754.0,0.0797053]
[1773240763863,0.07063342,70790.0,70754.0,0.0797053]
[1773240764050,0.00022001,70792.0,70754.0,0.0797053]
[1773240764266,0.14417588,70792.0,70754.0,0.0797053]
[1773240764952,0.07085045,70792.0,70754.0,0.0797053]
[1773240765290,0.07332543,70791.0,70754.0,0.0797053]
[1773240765527,0.07332543,70791.0,70756.0,0.0797053]
[1773240765730,0.07063144,70790.0,70757.0,0.07066438]
[1773240765926,0.07332543,70789.0,70758.0,0.0797053]
[1773240766229,0.00022001,70784.0,70759.0,0.00144]
[1773240766429,0.00022001,70784.0,70759.0,0.0811453]
[1773240766658,0.00022001,70784.0,70757.0,0.07066438]
[1773240766659,0.07332543,70783.0,70757.0,0.07066438]
[1773240766784,0.07332543,70783.0,70760.0,0.00144]
[1773240767914,0.07063942,70782.0,70761.0,0.07066039]
[1773240768114,0.14544485,70782.0,70761.0,0.07066039]
[1773240768569,0.07480543,70782.0,70761.0,0.07066039]
[1773240768860,0.07063894,70783.0,70762.0,0.0797053]
[1773240769412,0.07063894,70783.0,70760.0,0.07210111]
[1773240769413,0.07332543,70782.0,70760.0,0.07210111]
[1773240770238,0.07344793,70780.0,70760.0,0.07210111]
[1773240772200,0.07064242,70779.0,70760.0,0.07210111]
[1773240774361,0.07064242,70779.0,70760.0,0.07230111]
[1773240774799,0.14409035,70779.0,70760.0,0.07230111]
[1773240775225,0.07344793,70769.0,70751.0,0.07067037]
[1773240775369,0.07492793,70769.0,70752.0,0.07086919]
[1773240775992,0.07492793,70769.0,70753.0,0.00144]
[1773240776971,0.0706534,70768.0,70753.0,0.07210823]
[1773240777270,0.07344793,70767.0,70753.0,0.00144]
[1773240777669,0.07344793,70767.0,70752.0,0.00144]
[1773240778110,0.07492793,70767.0,70752.0,0.00144]
[1773240778676,0.0706534,70771.0,70752.0,0.00144]
[1773240778882,0.07344793,70782.0,70754.0,0.07066738]
[1773240779118,0.07344793,70782.0,70755.0,0.07485008]
[1773240780891,0.07064042,70781.0,70755.0,0.07066635]
[1773240781094,0.07344793,70779.0,70745.0,0.48672703]
[1773240781315,0.07344793,70779.0,70746.0,0.00144]
[1773240781494,0.07344793,70779.0,70747.0,0.00144]
[1773240781695,0.07344793,70779.0,70748.0,0.07485008]
[1773240782102,0.07344793,70779.0,70752.0,0.0002]
[1773240782504,0.07344793,70779.0,70753.0,0.00144]
[1773240782707,0.07444793,70779.0,70752.0,0.0002]
[1773240782907,0.07066139,70760.0,70727.0,0.0003031]
[1773240783108,0.07492793,70759.0,70737.0,0.07088393]
[1773240783357,0.07492793,70759.0,70738.0,0.00144]
[1773240783663,0.07492793,70759.0,70739.0,0.07485008]
[1773240783955,0.07492793,70759.0,70740.0,0.00144]
[1773240784606,0.07066139,70761.0,70742.0,0.07485008]
[1773240785260,0.00148,70761.0,70743.0,0.14552845]
[1773240785461,0.00148,70761.0,70744.0,0.07485008]
[1773240785830,0.0706534,70768.0,70744.0,0.07485008]
[1773240786038,0.00148,70767.0,70744.0,0.07485008]
[1773240786240,0.07344793,70766.0,70744.0,0.07485008]
[1773240786472,0.00148,70765.0,70744.0,0.07485008]
[1773240787055,0.07492793,70765.0,70744.0,0.07485008]
[1773240787239,0.07213674,70765.0,70745.0,0.07067637]
[1773240787440,0.07213674,70765.0,70746.0,0.07485008]
[1773240788399,0.07213674,70765.0,70747.0,0.00144]
[1773240789029,0.07213674,70765.0,70747.0,0.07629008]
[1773240789366,0.07213674,70765.0,70748.0,0.07067337]
[1773240789590,0.07213674,70765.0,70748.0,0.14552345]
[1773240790217,0.07213674,70765.0,70748.0,0.07485008]
[1773240790530,0.07213674,70765.0,70747.0,0.07211411]
[1773240790888,0.07213674,70765.0,70747.0,0.14696419]
[1773240792059,0.07213674,70765.0,70748.0,0.07485008]
[1773240792536,0.21013691,70766.0,70748.0,0.07485008]
[1773240792738,0.00144,70773.0,70748.0,0.07485008]
[1773240792884,0.07086246,70779.0,70748.0,0.07485008]
[1773240793327,0.14431039,70779.0,70748.0,0.07485008]
[1773240793528,0.07344793,70778.0,70750.0,0.07485008]
[1773240793837,0.07086246,70779.0,70750.0,0.07485008]
[1773240794211,0.00022001,70779.0,70750.0,0.07485008]
[1773240794420,0.07086281,70779.0,70752.0,0.07485008]
[1773240795642,0.07086281,70779.0,70754.0,0.07485008]
[1773240795822,0.07186281,70779.0,70754.0,0.07485008]
[1773240797014,0.07086281,70779.0,70754.0,0.07485008]
[1773240798442,0.07086281,70779.0,70755.0,0.07066638]
[1773240798639,0.07086281,70779.0,70756.0,0.07485008]
[1773240798864,0.07344793,70778.0,70742.0,0.07067937]
[1773240799069,0.07344793,70778.0,70743.0,0.07629008]
[1773240799838,0.07344793,70778.0,70740.0,0.0044447]
[1773240800039,0.0669516,70740.0,70713.0,0.48606001]
[1773240800247,0.07339818,70739.0,70713.0,0.48606001]
[1773240800458,0.07068436,70737.0,70714.0,0.07317153]
[1773240801122,0.07068436,70737.0,70713.0,0.48606001]
[1773240801321,0.07068436,70737.0,70712.0,1e-08]
[1773240801322,0.07339818,70736.0,70712.0,1e-08]
[1773240802077,0.07195818,70736.0,70712.0,1e-08]
[1773240802279,0.17108,70735.0,70701.0,0.07072035]
[1773240802483,0.07195818,70732.0,70701.0,0.14389188]
[1773240802700,0.12358907,70731.0,70702.0,0.07317153]
[1773240802941,0.07339818,70730.0,70702.0,0.07317153]
[1773240803131,0.05019089,70729.0,70702.0,0.07317153]
[1773240803353,0.12214907,70729.0,70702.0,0.07317153]
[1773240803532,0.05019089,70729.0,70702.0,0.07317153]
[1773240803731,0.07195818,70728.0,70702.0,0.07317153]
[1773240803953,0.03212217,70727.0,70702.0,0.07317153]
[1773240804156,0.10408035,70727.0,70702.0,0.07317153]
[1773240804713,0.07195818,70725.0,70703.0,0.07071835]
[1773240804912,0.08979041,70724.0,70703.0,0.07071835]
[1773240805320,0.08979041,70724.0,70701.0,0.07071835]
[1773240806068,0.08835041,70724.0,70701.0,0.14388988]
[1773240806264,0.01639223,70724.0,70702.0,0.07481153]
[1773240806417,0.00144,70723.0,70702.0,0.07481153]
[1773240806612,0.07069535,70728.0,70702.0,0.07481153]
[1773240806613,0.03597087,70729.0,70703.0,0.07071835]
[1773240806837,0.00144,70731.0,70704.0,0.07317153]
[1773240807082,0.00144,70732.0,70704.0,0.07317153]
[1773240807307,0.01340635,70743.0,70704.0,0.07317153]
[1773240807428,0.00144,70742.0,70704.0,0.07317153]
[1773240807863,0.01336792,70741.0,70704.0,0.07317153]
[1773240808477,0.12584768,70740.0,70702.0,0.0002]
[1773240808633,0.07069336,70728.0,70702.0,0.0002]
[1773240808838,0.07339818,70727.0,70702.0,0.07091928]
[1773240809145,0.07195818,70725.0,70702.0,0.0002]
[1773240809486,0.07195818,70725.0,70692.0,7.5e-05]
[1773240809487,0.07195818,70725.0,70661.0,0.00048]
[1773240809488,0.07195818,70693.0,70661.0,0.00048]
[1773240809701,0.07195818,70679.0,70661.0,0.00048]
[1773240809906,0.07195818,70677.0,70652.0,0.0003141]
[1773240810047,0.01313937,70676.0,70652.0,0.07108343]
[1773240810449,0.00144,70675.0,70652.0,0.07108343]
[1773240810671,0.07074737,70674.0,70652.0,0.07108343]
[1773240811074,0.00144,70673.0,70652.0,0.07108343]
[1773240811295,0.00144,70672.0,70653.0,0.07317153]
[1773240811624,0.07074737,70674.0,70653.0,0.07317153]
[1773240811777,0.00144,70673.0,70653.0,0.07317153]
[1773240811978,0.00144,70672.0,70653.0,0.07317153]
[1773240812172,0.00144,70671.0,70653.0,0.07317153]
[1773240812588,0.00144,70671.0,70652.0,0.07108346]
[1773240812789,0.07075137,70670.0,70652.0,0.07108346]
[1773240812992,0.07075137,70670.0,70653.0,0.07317153]
[1773240813415,0.07219137,70671.0,70653.0,0.07317153]
[1773240813620,0.07073631,70686.0,70653.0,0.07317153]
[1773240813859,0.00144,70675.0,70654.0,0.00144]
[1773240814061,0.03606094,70686.0,70655.0,0.07317153]
[1773240814216,0.03552736,70692.0,70655.0,0.07317153]
[1773240814440,0.00144,70691.0,70655.0,0.07317153]
[1773240814676,0.00144,70690.0,70655.0,0.07317153]
[1773240814846,0.07217185,70690.0,70657.0,0.07317153]
[1773240815554,0.00144,70689.0,70657.0,0.07317153]
[1773240815774,0.07073136,70691.0,70657.0,0.07317153]
[1773240816002,0.00144,70690.0,70657.0,0.07317153]
[1773240816303,0.00144,70689.0,70661.0,0.07317153]
[1773240816504,0.07071931,70703.0,70660.0,0.12584768]
[1773240816505,0.07071817,70704.0,70663.0,0.07317153]
[1773240816806,0.00144,70703.0,70663.0,0.07317153]
[1773240817002,0.07071935,70702.0,70665.0,0.07317153]
[1773240817412,0.00144,70701.0,70665.0,0.07317153]
[1773240817812,0.07071935,70702.0,70665.0,0.07317153]
[1773240818243,0.00144,70701.0,70665.0,0.07317153]
[1773240818445,0.00144,70701.0,70671.0,0.07317153]
[1773240818810,0.00144,70701.0,70672.0,0.00144]
[1773240819120,0.01249083,70706.0,70675.0,0.07317153]
[1773240819270,0.03516274,70714.0,70682.0,0.07317153]
[1773240819472,0.03470231,70730.0,70691.0,0.07317153]
[1773240819738,0.00144,70729.0,70693.0,0.07317153]
[1773240819878,0.07195818,70728.0,70693.0,0.07317153]
[1773240820699,0.00144,70727.0,70693.0,0.07317153]
[1773240820904,0.00144,70727.0,70686.0,0.00144]
[1773240820905,0.0827533,70719.0,70686.0,0.00144]
[1773240821135,0.0827533,70719.0,70682.0,0.09021264]
[1773240821136,0.0827533,70717.0,70683.0,0.07073836]
[1773240821302,0.07070335,70718.0,70683.0,0.07073836]
[1773240821303,0.0827533,70715.0,70683.0,0.07073836]
[1773240821517,0.0827533,70715.0,70683.0,0.160951]
[1773240822240,0.0827533,70715.0,70683.0,0.07073836]
[1773240822535,0.0827533,70715.0,70684.0,0.09021264]
[1773240823699,0.0827533,70713.0,70685.0,0.07073636]
[1773240824217,0.00144,70712.0,70686.0,0.09021264]
[1773240824599,0.00144,70711.0,70686.0,0.09021264]
[1773240825563,0.07070368,70718.0,70686.0,0.09021264]
[1773240825697,0.07070163,70720.0,70688.0,0.09021264]
[1773240825902,0.00144,70719.0,70688.0,0.09021264]
[1773240826236,0.00144,70718.0,70688.0,0.09021264]
[1773240828149,0.14014366,70721.0,70691.0,0.09021264]
[1773240828353,0.14014366,70721.0,70689.0,0.07073236]
[1773240828354,0.00144,70728.0,70701.0,0.09021264]
[1773240828561,0.07069037,70731.0,70703.0,0.09021264]
[1773240828562,0.00144,70727.0,70703.0,0.09021264]
[1773240829702,0.00144,70728.0,70705.0,0.08770331]
[1773240829902,0.00144,70728.0,70705.0,0.08754546]
[1773240830099,0.00144,70728.0,70706.0,0.07071535]
[1773240830297,0.00144,70728.0,70707.0,0.08770331]
[1773240830500,0.00144,70728.0,70708.0,0.00144]
[1773240830819,0.00144,70728.0,70709.0,0.08770331]
[1773240832829,0.00144,70728.0,70711.0,0.08770331]
[1773240833263,0.00144,70728.0,70710.0,0.07071135]
[1773240833463,0.00144,70727.0,70710.0,0.07071135]
[1773240833986,0.00144,70727.0,70711.0,0.08870331]
[1773240834411,0.00144,70727.0,70711.0,0.08770331]
[1773240835140,0.00144,70727.0,70712.0,0.07070935]
[1773240835297,0.00144,70727.0,70712.0,0.15841266]
[1773240836705,0.00144,70727.0,70712.0,0.07070935]
[1773240836901,0.00144,70727.0,70711.0,0.07070935]
[1773240837219,0.00144,70727.0,70712.0,0.08770331]
[1773240837392,0.00022001,70729.0,70712.0,0.08770331]
[1773240837598,0.00144,70737.0,70712.0,0.08770331]
[1773240838046,0.00144,70738.0,70712.0,0.08770331]
[1773240839077,0.00144,70738.0,70714.0,0.08770331]
[1773240839231,0.00144,70738.0,70716.0,0.08770331]
[1773240839845,0.00022001,70735.0,70716.0,0.08770331]
[1773240840898,0.00022001,70742.0,70720.0,0.12597969]
[1773240841101,0.0004264,70756.0,70723.0,0.08770331]
[1773240841102,0.00144,70748.0,70723.0,0.08770331]
[1773240841271,0.00144,70748.0,70725.0,0.08770331]
[1773240842043,0.00144,70751.0,70725.0,0.08770331]
[1773240843094,0.07067137,70750.0,70726.0,0.07069535]
[1773240843395,0.08905351,70749.0,70726.0,0.07069535]
[1773240843573,0.08905351,70749.0,70725.0,0.07069535]
[1773240843574,0.08905351,70749.0,70725.0,0.07169614]
[1773240843984,0.15972488,70750.0,70726.0,0.08770331]
[1773240844161,0.00144,70749.0,70728.0,0.08770331]
[1773240844359,0.00144,70748.0,70728.0,0.08770331]
[1773240844783,0.07067096,70751.0,70728.0,0.08770331]
[1773240844947,0.2108548,70752.0,70728.0,0.08770331]
[1773240844948,0.00144,70750.0,70728.0,0.08770331]
[1773240845154,0.00144,70749.0,70730.0,0.08770331]
[1773240845350,0.00144,70751.0,70730.0,0.08770331]
[1773240846598,0.00144,70750.0,70730.0,0.08770331]
[1773240847216,0.0721119,70750.0,70731.0,0.07069036]
[1773240847412,0.07211177,70750.0,70731.0,0.15839367]
[1773240848518,0.00144,70749.0,70731.0,0.15839367]
[1773240849434,0.07211315,70749.0,70731.0,0.15839367]
[1773240849840,0.00144,70749.0,70731.0,0.15839367]
[1773240850104,0.00144,70749.0,70732.0,0.08770331]
[1773240850309,0.00144,70748.0,70733.0,0.08914331]
[1773240851940,0.00144,70748.0,70735.0,0.08770331]
[1773240853822,0.00144,70748.0,70736.0,0.07068536]
[1773240855897,0.00144,70748.0,70737.0,0.08770331]
[1773240856443,0.00022001,70751.0,70737.0,0.08770331]
[1773240857072,0.06690479,70735.0,70704.0,0.07071735]
[1773240857195,0.09049351,70734.0,70712.0,0.36026101]
[1773240857401,0.00144,70733.0,70713.0,0.08770331]
[1773240857618,0.00144,70732.0,70713.0,0.08770331]
[1773240858040,0.00144,70732.0,70715.0,0.08770331]
[1773240858442,0.07068019,70742.0,70715.0,0.08770331]
[1773240858669,0.00022001,70751.0,70738.0,0.08770331]
[1773240859191,0.07089043,70751.0,70738.0,0.08770331]
[1773240859434,0.00022001,70751.0,70738.0,0.08007063]
[1773240859638,0.07089097,70751.0,70737.0,0.00144]
[1773240860168,0.07089097,70751.0,70736.0,0.00144]
[1773240861416,0.07233097,70751.0,70737.0,0.09159554]
[1773240861621,0.07233097,70751.0,70716.0,0.07070496]
[1773240861857,0.08589882,70750.0,70717.0,0.09159554]
[1773240862031,0.08589882,70750.0,70717.0,0.09303554]
[1773240862237,0.08589882,70748.0,70718.0,0.07070335]
[1773240862457,0.08589882,70748.0,70719.0,0.09159554]
[1773240863181,0.08589882,70748.0,70713.0,0.07070757]
[1773240863430,0.08589882,70748.0,70715.0,0.07070579]
[1773240863845,0.12597969,70740.0,70710.0,0.07091121]
[1773240864051,0.07971917,70739.0,70710.0,0.07091121]
[1773240864299,0.07966951,70737.0,70710.0,0.0002]
[1773240864852,0.07966951,70737.0,70710.0,0.07091128]
[1773240865085,0.00144,70736.0,70710.0,0.0002]
[1773240865286,0.00144,70736.0,70703.0,0.00141437]
[1773240865287,0.08589882,70729.0,70703.0,0.00141437]
[1773240865487,0.08589882,70727.0,70703.0,0.00141437]
[1773240866406,0.08589882,70725.0,70703.0,0.00141437]
[1773240868297,0.07069935,70722.0,70703.0,0.00141437]
[1773240868674,0.08589882,70721.0,70703.0,0.00141437]
[1773240869213,0.12597969,70720.0,70703.0,1e-08]
[1773240869418,0.08589882,70721.0,70703.0,1e-08]
[1773240869604,0.08589882,70719.0,70703.0,1e-08]
[1773240870051,0.08589882,70717.0,70682.0,0.07073836]
[1773240870229,0.00144,70718.0,70680.0,0.07094135]
[1773240870230,0.08589882,70708.0,70680.0,0.07094135]
[1773240870437,0.08589882,70705.0,70680.0,0.07094135]
[1773240870661,0.14061268,70705.0,70680.0,0.07094135]
[1773240870856,0.08589882,70705.0,70681.0,0.09159554]
[1773240871064,0.00144,70704.0,70695.0,0.0002]
[1773240871274,0.08589882,70703.0,70688.0,0.0002]
[1773240871864,0.00144,70702.0,70688.0,0.0002]
[1773240872060,0.14061268,70705.0,70688.0,0.0002]
[1773240872061,0.00144,70701.0,70688.0,0.0002]
[1773240872450,0.07070752,70714.0,70690.0,0.09159554]
[1773240872700,0.00144,70719.0,70691.0,0.09159554]
[1773240872899,0.00144,70718.0,70691.0,0.09159554]
[1773240873299,0.00144,70721.0,70691.0,0.09159554]
[1773240873704,0.07069336,70728.0,70691.0,0.09159554]
[1773240873919,0.00144,70735.0,70701.0,0.09159554]
[1773240874124,0.03494482,70740.0,70703.0,0.09159554]
[1773240874334,0.00144,70739.0,70703.0,0.09159554]
[1773240874543,0.03586628,70742.0,70710.0,0.12597969]
[1773240874776,0.03586628,70742.0,70712.0,0.09159554]
[1773240875605,0.07089128,70751.0,70712.0,0.09159554]
[1773240875807,0.07067137,70750.0,70721.0,0.09159554]
[1773240876025,0.07067137,70750.0,70723.0,0.09159554]
[1773240876665,0.07067137,70750.0,70724.0,0.07069735]
[1773240876865,0.07067137,70750.0,70725.0,0.09159554]
[1773240878977,0.0706737,70748.0,70726.0,0.07069535]
[1773240879187,0.0706737,70748.0,70727.0,0.09159554]
[1773240879583,0.07067237,70749.0,70727.0,0.09159554]
[1773240879916,0.07211237,70749.0,70727.0,0.09159554]
[1773240880163,0.07067237,70749.0,70727.0,0.09159554]
[1773240880767,0.07067191,70750.0,70727.0,0.09159554]
[1773240881173,0.00022001,70751.0,70729.0,0.09048919]
[1773240881386,0.07087607,70766.0,70728.0,0.07069336]
[1773240881387,0.07065827,70764.0,70732.0,0.09048919]
[1773240881587,0.02277155,70764.0,70732.0,0.09048919]
[1773240881787,0.00144,70763.0,70732.0,0.09048919]
[1773240882461,0.02277155,70764.0,70732.0,0.09048919]
[1773240882653,0.00144,70763.0,70732.0,0.09048919]
[1773240883869,0.07065939,70762.0,70734.0,0.09048919]
[1773240884836,0.07209939,70762.0,70734.0,0.09048919]
[1773240885875,0.07087574,70766.0,70736.0,0.09048919]
[1773240886210,0.00144,70762.0,70738.0,0.09048919]
[1773240886440,0.07087598,70766.0,70738.0,0.09048919]
[1773240887122,0.00022001,70762.0,70738.0,0.09048919]
[1773240888064,0.00022001,70762.0,70740.0,0.09048919]
[1773240889981,0.00022001,70762.0,70742.0,0.08785046]
[1773240890182,0.00141298,70772.0,70750.0,0.12584643]
[1773240890380,0.00022001,70784.0,70761.0,0.08785046]
[1773240890587,0.00022001,70784.0,70760.0,0.12584643]
[1773240890588,0.0001126,70807.0,70773.0,0.08785046]
[1773240890792,0.07061854,70803.0,70781.0,0.08785046]
[1773240891139,0.07061977,70802.0,70783.0,0.08785046]
[1773240891302,0.07061854,70803.0,70785.0,0.08785046]
[1773240891303,0.06105856,70803.0,70785.0,0.08785046]
[1773240891490,0.06105856,70803.0,70786.0,0.08929046]
[1773240891691,0.06105856,70803.0,70787.0,0.00144]
[1773240891909,0.07061781,70804.0,70787.0,0.00144]
[1773240892194,0.0001126,70807.0,70788.0,0.07063344]
[1773240895074,0.09450647,70802.0,70765.0,0.08785046]
[1773240895283,0.09450647,70802.0,70764.0,0.38761994]
[1773240895284,0.09450647,70798.0,70762.0,0.22465839]
[1773240895440,0.09591919,70785.0,70766.0,0.00144]
[1773240895672,0.00285272,70785.0,70767.0,0.08785046]
[1773240895869,0.00141272,70785.0,70767.0,0.08785046]
[1773240896254,0.00141272,70785.0,70766.0,0.00144]
[1773240896818,0.07063743,70784.0,70767.0,0.0706544]
[1773240897210,0.07063743,70784.0,70768.0,0.00144]
[1773240897450,0.07204959,70785.0,70768.0,0.00144]
[1773240897645,0.07204959,70785.0,70769.0,0.08785046]
[1773240898619,0.07204959,70785.0,70768.0,0.00144]
[1773240899064,0.00141272,70785.0,70770.0,0.08785046]
[1773240899538,0.07204923,70785.0,70769.0,0.0706524]
[1773240900015,0.00141272,70785.0,70769.0,0.0706524]
[1773240900554,0.07204928,70785.0,70769.0,0.0706524]